bitfinex-derivatives/quotes_ETHF0:USTF0_20260316
["timestamp","ask_amount","ask_price","bid_price","bid_amount"]
[1773668693470,12.38405712,2292.1,2291.0,0.22382]
[1773668694668,12.38405712,2292.1,2291.0,0.00561]
[1773668695271,12.38405712,2292.1,2291.0,6.67846894]
[1773668695472,12.38405712,2292.1,2291.1,6.67285894]
[1773668695876,12.38405712,2292.1,2291.1,6.89105894]
[1773668696473,12.38405712,2292.1,2291.1,12.18746574]
[1773668697176,12.38405712,2292.1,2291.1,6.89105894]
[1773668697572,12.38405712,2292.1,2291.1,0.2182]
[1773668698668,11.24580135,2291.9,2290.8,0.21823]
[1773668698868,18.30380135,2291.8,2290.9,6.28354964]
[1773668699178,11.24580135,2291.8,2290.9,6.28354964]
[1773668699677,11.24580135,2291.8,2290.9,11.58468506]
[1773668699869,11.24580135,2291.8,2291.0,11.76675972]
[1773668700275,11.24580135,2291.8,2290.9,0.00472862]
[1773668701474,11.24580135,2291.8,2291.0,0.21821]
[1773668702275,11.24580135,2291.6,2290.9,0.00472862]
[1773668703167,0.00473441,2292.5,2290.9,0.00472862]
[1773668703168,7.071,2292.2,2291.1,6.21808053]
[1773668703372,11.24580135,2292.1,2291.1,6.21808053]
[1773668704074,11.24580135,2292.4,2291.8,0.21813]
[1773668704274,0.00473441,2292.5,2291.8,6.33844415]
[1773668704674,0.00473441,2292.5,2291.8,6.12031415]
[1773668705069,0.00473441,2292.5,2291.9,0.21812]
[1773668705280,0.0005563,2292.5,2291.9,6.51001954]
[1773668705875,11.24580135,2292.7,2291.8,5.2964068]
[1773668706079,11.24580135,2292.5,2291.0,6.25646409]
[1773668706275,11.24580135,2292.3,2290.9,0.00472862]
[1773668706475,11.24580135,2292.1,2290.9,0.00472862]
[1773668706675,11.24580135,2291.9,2290.9,0.00472862]
[1773668706875,11.250377,2291.9,2290.9,0.00472862]
[1773668708882,18.338377,2291.9,2290.9,0.00472862]
[1773668709082,0.00457565,2291.9,2291.0,5.56217063]
[1773668709283,0.00457565,2291.9,2291.2,5.41354394]
[1773668709584,11.24580135,2292.4,2291.5,0.21816]
[1773668709780,11.24580135,2292.7,2291.7,5.56210063]
[1773668709976,11.24580135,2292.7,2291.9,5.56208063]
[1773668710485,11.25028637,2292.7,2291.9,0.21812]
[1773668710678,11.25028637,2292.7,2291.9,5.63166394]
[1773668710880,11.24580135,2293.0,2292.2,7.9794429]
[1773668711082,11.24580135,2293.0,2292.1,5.63164394]
[1773668711387,11.24580135,2293.0,2292.1,0.2181]
[1773668711587,11.24580135,2293.0,2292.1,8.23335897]
[1773668711787,11.24580135,2293.0,2292.1,13.64690291]
[1773668711986,11.25111407,2293.0,2292.1,13.64690291]
[1773668712782,11.24580135,2292.8,2291.5,5.41354394]
[1773668712983,11.24580135,2292.6,2291.2,13.38520705]
[1773668713187,11.24580135,2292.6,2291.2,12.93154394]
[1773668713387,11.24580135,2292.6,2291.2,7.518]
[1773668713588,11.24580135,2292.6,2291.2,12.93154394]
[1773668713793,11.24580135,2292.6,2291.3,5.41354394]
[1773668714494,11.24580135,2292.6,2291.3,12.93654394]
[1773668714789,11.24580135,2292.6,2291.5,13.30337764]
[1773668715285,11.24580135,2292.6,2291.5,5.41354394]
[1773668715490,11.24580135,2292.6,2291.4,5.41354394]
[1773668715691,11.24580135,2292.6,2291.3,5.41354394]
[1773668716190,11.24580135,2292.6,2291.4,13.32774902]
[1773668716487,11.24580135,2292.6,2291.6,8.13235508]
[1773668716685,11.24580135,2292.9,2291.9,13.32774902]
[1773668716990,11.24580135,2292.9,2292.0,7.531]
[1773668717988,11.24580135,2292.9,2292.0,7.536]
[1773668718187,11.24580135,2292.9,2292.1,8.16813473]
[1773668718385,11.24580135,2293.7,2292.1,8.16813473]
[1773668718588,11.24580135,2293.7,2292.7,0.21804]
[1773668718792,11.24580135,2293.7,2292.7,15.70176201]
[1773668718990,11.24580135,2293.7,2292.9,0.21803]
[1773668719190,11.24580135,2294.0,2293.0,7.87805239]
[1773668719386,11.24580135,2294.0,2293.0,0.00314308]
[1773668719688,11.24580135,2294.3,2293.3,0.21799]
[1773668719893,11.24580135,2294.3,2293.4,7.544]
[1773668720096,11.24580135,2294.3,2293.4,15.40260233]
[1773668720288,11.24580135,2294.3,2293.1,7.85860233]
[1773668720494,11.24580135,2294.3,2293.2,15.40360233]
[1773668720792,0.00437956,2294.3,2293.7,7.85860233]
[1773668720989,0.00437956,2294.3,2293.8,15.40560233]
[1773668721184,11.25018091,2294.3,2293.6,0.21796]
[1773668721385,11.25018091,2294.3,2293.5,15.44545014]
[1773668721589,0.00437956,2294.3,2293.6,7.89645014]
[1773668721790,11.24580135,2295.0,2293.6,7.89645014]
[1773668721987,11.24580135,2295.3,2293.8,16.61410014]
[1773668722290,7.12,2296.3,2294.8,7.78782213]
[1773668722491,7.12,2296.3,2294.2,5.41354394]
[1773668722492,11.8128201,2296.2,2294.6,13.20136607]
[1773668722800,11.8128201,2296.0,2294.6,0.00322043]
[1773668723589,11.8128201,2295.6,2294.6,0.00322043]
[1773668723895,11.8128201,2295.4,2294.6,0.00322043]
[1773668724396,11.8128201,2295.4,2294.2,15.59699903]
[1773668724592,11.8128201,2295.4,2294.3,8.03799903]
[1773668724989,0.0056528,2296.2,2294.3,8.25588903]
[1773668725194,11.8128201,2296.1,2294.3,8.03799903]
[1773668725395,11.8128201,2296.1,2294.3,8.04131508]
[1773668726291,11.8128201,2296.1,2294.5,8.04121988]
[1773668726486,11.8128201,2296.1,2294.7,8.04121988]
[1773668726887,11.8128201,2296.1,2294.5,7.565]
[1773668727092,11.8128201,2296.1,2294.5,7.566]
[1773668727292,11.8128201,2296.1,2294.3,8.04453593]
[1773668727491,11.8128201,2295.9,2294.3,0.00331605]
[1773668727698,11.8128201,2296.5,2294.7,10.9766911]
[1773668728392,11.8128201,2296.3,2294.7,10.9766911]
[1773668728592,7.13,2296.2,2294.9,10.9766911]
[1773668728793,11.8128201,2296.1,2294.9,10.9766911]
[1773668729699,0.00515949,2296.3,2295.3,10.9766911]
[1773668729893,11.81797959,2296.3,2295.3,10.9766911]
[1773668730094,11.81797959,2296.3,2294.7,10.9766911]
[1773668730799,11.8128201,2296.2,2294.7,10.9766911]
[1773668732691,11.8128201,2296.2,2294.8,11.1945411]
[1773668732898,11.8128201,2296.0,2294.8,11.1945411]
[1773668733089,11.8128201,2296.0,2294.4,10.9766911]
[1773668733490,11.8128201,2296.0,2294.5,0.21787]
[1773668733695,11.8128201,2295.8,2294.6,10.9766911]
[1773668734197,11.8128201,2295.8,2294.3,0.00331605]
[1773668734198,11.8128201,2295.5,2294.3,0.00331605]
[1773668734503,8.70931,2296.1,2294.3,0.00331605]
[1773668734504,12.23117557,2298.9,2297.6,0.21874457]
[1773668734691,12.23117557,2300.0,2297.8,0.00116457]
[1773668734891,12.23117557,2299.8,2298.0,0.00116457]
[1773668735203,12.23117557,2299.6,2297.7,0.00116457]
[1773668735394,12.23117557,2299.6,2297.7,0.00449322]
[1773668735395,12.32243553,2299.4,2297.7,0.00449322]
[1773668735801,14.8032584,2299.4,2297.7,0.00449322]
[1773668736997,14.86084376,2299.2,2296.8,1.9884792]
[1773668737397,14.78510045,2299.2,2296.8,10.6948192]
[1773668737598,14.78510045,2299.2,2296.8,1.9884792]
[1773668737800,12.23394437,2299.0,2296.8,1.9884792]
[1773668737994,12.23394437,2299.0,2296.8,0.00555791]
[1773668738700,12.24541783,2299.3,2298.1,10.77283859]
[1773668738897,12.24541783,2299.3,2298.1,2.07130859]
[1773668739098,12.24541783,2299.2,2298.1,2.07130859]
[1773668739297,12.22683157,2299.5,2298.4,2.30801986]
[1773668739495,12.22683157,2299.3,2297.7,2.09051986]
[1773668739698,12.22683157,2299.5,2298.4,0.2175]
[1773668739903,12.22683157,2299.3,2298.4,0.2175]
[1773668740200,12.22683157,2299.3,2297.8,2.0331395]
[1773668740700,12.22683157,2299.3,2297.2,3.52023594]
[1773668740901,12.22683157,2299.3,2297.0,2.2507695]
[1773668741093,12.28426927,2298.7,2296.8,0.00555791]
[1773668741299,12.28426927,2298.5,2296.8,0.00555791]
[1773668741494,12.28426927,2298.3,2296.8,0.00555791]
[1773668741700,12.28426927,2298.1,2296.8,0.00555791]
[1773668741894,12.28426927,2297.9,2296.8,0.00555791]
[1773668742094,12.28426927,2297.7,2296.8,0.00555791]
[1773668743600,12.2106084,2299.2,2297.7,8.92059]
[1773668743801,12.2106084,2299.0,2297.7,8.92059]
[1773668744100,12.20453151,2298.8,2297.7,8.92059]
[1773668744300,19.47953151,2298.7,2297.7,0.21756]
[1773668744501,12.20453151,2298.5,2297.7,0.21756]
[1773668744701,19.48882829,2298.5,2297.7,0.21756]
[1773668745102,12.20982829,2298.5,2297.7,0.21756]
[1773668745306,19.44566749,2298.4,2297.7,0.21756]
[1773668745599,0.00529678,2298.5,2297.7,0.21756]
[1773668745805,0.00529678,2298.5,2297.7,8.9206]
[1773668746001,0.00529678,2298.5,2297.7,2.33140128]
[1773668746204,7.25029678,2298.5,2297.8,5.42584821]
[1773668746509,7.25029678,2298.5,2297.1,7.713]
[1773668746510,12.17061316,2298.4,2297.1,7.713]
[1773668746709,12.17061316,2298.4,2297.3,10.997035]
[1773668746907,7.25929678,2298.5,2297.7,0.21757]
[1773668747107,0.00529678,2298.5,2297.7,0.21757]
[1773668747306,12.22477149,2298.4,2297.7,0.21757]
[1773668747505,12.22477149,2298.4,2297.2,3.52023594]
[1773668747711,12.22477149,2298.4,2297.0,0.21763]
[1773668748015,12.22477149,2298.2,2297.2,0.21762]
[1773668748205,12.22477149,2298.2,2296.8,3.52579385]
[1773668748411,12.22477149,2298.2,2296.9,5.44370952]
[1773668748609,12.22477149,2298.2,2297.0,5.44370952]
[1773668748806,12.22477149,2298.2,2296.8,0.00555791]
[1773668749007,11.8128201,2298.3,2297.6,0.21758]
[1773668749209,11.8128201,2298.2,2297.0,11.1943311]
[1773668749408,11.8128201,2298.2,2297.1,16.4241598]
[1773668749613,11.8128201,2298.2,2297.2,5.4474687]
[1773668749813,11.8128201,2298.2,2297.3,5.4474687]
[1773668750008,11.8128201,2298.2,2297.2,11.1943111]
[1773668750204,11.8128201,2301.0,2299.0,8.69799]
[1773668750409,8.68748,2301.9,2298.3,8.70075]
[1773668750410,11.8128201,2300.6,2298.6,19.8937511]
[1773668750614,11.8128201,2300.4,2298.8,0.21747]
[1773668750816,11.8128201,2300.2,2298.8,0.21747]
[1773668751015,11.8128201,2300.0,2298.9,5.44175733]
[1773668751215,11.8128201,2299.8,2298.9,0.00355493]
[1773668752811,11.8128201,2299.8,2299.0,0.21745]
[1773668753012,7.321,2299.7,2299.0,0.21745]
[1773668753211,13.40681868,2299.6,2298.9,0.00355493]
[1773668753811,12.78700685,2301.0,2299.7,8.91266]
[1773668754118,12.78700685,2300.9,2299.8,5.40752953]
[1773668754315,12.78700685,2300.9,2299.7,13.37632127]
[1773668754519,12.78700685,2300.9,2299.7,0.21737]
[1773668754712,12.78700685,2300.9,2299.8,5.40525084]
[1773668754914,12.78700685,2300.9,2299.7,0.21737]
[1773668754915,12.79024628,2300.9,2299.7,0.21737]
[1773668755219,12.79024628,2300.9,2299.4,13.15895127]
[1773668755417,12.79024628,2300.9,2299.5,5.38592854]
[1773668755618,12.78700685,2300.7,2299.6,18.76226981]
[1773668755818,12.78700685,2300.7,2299.6,13.37634127]
[1773668756321,0.00323943,2300.9,2299.8,22.07139127]
[1773668756515,0.00323943,2300.9,2300.0,0.21735]
[1773668756716,7.349,2300.8,2300.0,0.21735]
[1773668756910,20.13600685,2300.8,2300.0,0.21735]
[1773668757120,12.78700685,2300.7,2299.7,0.21738]
[1773668757618,0.00323943,2300.9,2300.0,0.21734]
[1773668757619,12.79024628,2300.9,2300.0,0.21734]
[1773668758019,12.79024628,2300.9,2299.8,13.15895127]
[1773668758219,12.79024628,2300.9,2299.5,13.37635127]
[1773668758419,12.79024628,2300.9,2299.6,5.38511378]
[1773668758620,12.79024628,2300.9,2299.2,13.15895127]
[1773668758821,12.79024628,2300.9,2299.3,0.21742]
[1773668759121,12.78700685,2300.7,2299.3,0.21742]
[1773668759317,12.78700685,2300.7,2298.9,13.1625062]
[1773668759519,12.78700685,2300.7,2299.3,0.21742]
[1773668759716,0.00323943,2300.9,2299.3,0.21742]
[1773668759717,12.78700685,2300.5,2299.3,0.21742]
[1773668760217,12.78700685,2300.3,2299.3,0.21742]
[1773668760418,7.366,2300.2,2299.3,0.21742]
[1773668760820,12.78700685,2300.1,2298.9,0.00355493]
[1773668762723,12.78700685,2299.9,2298.9,0.00355493]
[1773668762920,12.78700685,2299.7,2298.9,0.00355493]
[1773668763121,12.78700685,2299.6,2298.9,0.00355493]
[1773668763316,0.00323943,2300.9,2300.2,0.21733]
[1773668763522,0.00323943,2300.9,2300.3,5.41090488]
[1773668763720,12.78700685,2300.8,2300.4,5.41090488]
[1773668763920,12.78700685,2300.8,2300.2,0.21733]
[1773668764122,12.78700685,2300.8,2299.8,3.52023594]
[1773668764324,12.78700685,2300.8,2300.0,3.52023594]
[1773668764617,12.78700685,2300.8,2300.1,5.42706634]
[1773668764817,12.78700685,2300.8,2300.2,5.42706634]
[1773668765015,12.78700685,2300.8,2299.8,3.52023594]
[1773668765221,12.78700685,2300.8,2299.9,5.40906749]
[1773668765519,7.384,2300.7,2300.0,5.40906749]
[1773668765716,12.78700685,2300.6,2300.1,5.40906749]
[1773668765914,12.78700685,2300.6,2299.7,3.52023594]
[1773668766121,12.78700685,2300.6,2299.8,5.40701971]
[1773668766319,12.78700685,2300.6,2299.6,0.21739]
[1773668766518,12.78700685,2300.6,2299.7,5.40867255]
[1773668766719,12.78700685,2300.6,2299.2,3.52023594]
[1773668767019,7.384,2300.7,2298.9,3.52379087]
[1773668767020,12.78700685,2300.4,2298.9,3.52379087]
[1773668767219,12.78700685,2300.4,2298.9,0.00355493]
[1773668768415,12.78700685,2300.2,2298.9,0.00355493]
[1773668768624,12.78700685,2300.0,2298.9,0.00355493]
[1773668768815,12.78700685,2300.0,2298.4,3.73773594]
[1773668769419,13.00436685,2300.0,2298.2,3.52023594]
[1773668769623,13.00436685,2300.0,2298.1,3.52023594]
[1773668769821,13.00436685,2300.0,2298.1,3.52549358]
[1773668770220,13.00436685,2300.0,2298.1,0.00525764]
[1773668770623,12.78700685,2299.7,2298.1,0.00525764]
[1773668771425,12.78700685,2299.7,2298.2,0.21752]
[1773668771627,12.78700685,2299.5,2298.2,0.21752]
[1773668771818,12.78700685,2299.3,2298.2,0.21752]
[1773668772024,12.78700685,2299.1,2298.2,0.21752]
[1773668772321,12.78700685,2298.9,2298.2,0.21752]
[1773668773024,20.19000685,2298.8,2298.1,3.52549358]
[1773668773228,20.19000685,2298.8,2297.8,5.25415837]
[1773668773229,12.78700685,2298.7,2297.8,5.25415837]
[1773668773425,12.78700685,2298.7,2297.9,5.25415837]
[1773668773925,12.78700685,2301.1,2299.4,13.15895127]
[1773668774127,12.78700685,2300.7,2299.4,13.37636127]
[1773668774819,12.78700685,2300.7,2299.4,13.38133958]
[1773668775025,12.79016212,2300.7,2299.4,13.38133958]
[1773668775220,12.78700685,2300.5,2299.4,13.38133958]
[1773668775427,12.78700685,2300.3,2299.4,0.22238831]
[1773668775621,0.00315527,2300.7,2299.4,13.38133958]
[1773668775828,20.19800685,2300.6,2299.5,13.15895127]
[1773668776025,0.00315527,2300.7,2299.4,5.54000815]
[1773668776026,12.78700685,2300.4,2299.4,0.22238831]
[1773668776421,12.78700685,2300.4,2299.4,13.38133958]
[1773668776626,20.16700685,2300.4,2299.4,18.70201521]
[1773668776829,20.16700685,2300.4,2299.4,13.38133958]
[1773668777129,12.78700685,2300.3,2299.4,13.38133958]
[1773668777524,12.78700685,2300.3,2299.4,0.22238831]
[1773668779021,12.78700685,2300.3,2299.5,5.04194069]
[1773668779227,12.78700685,2300.3,2299.6,5.04194069]
[1773668779427,12.78700685,2300.3,2299.7,5.04194069]
[1773668779628,12.78700685,2300.3,2299.8,5.04194069]
[1773668779823,12.78700685,2300.3,2299.4,0.22238831]
[1773668780032,7.397,2300.2,2299.5,5.04697601]
[1773668780233,12.78700685,2300.1,2299.6,5.04697601]
[1773668780432,12.78700685,2300.1,2299.4,0.00497831]
[1773668780931,12.78700685,2299.9,2299.4,0.00497831]
[1773668781133,12.78700685,2299.7,2299.4,0.00497831]
[1773668781431,7.401,2299.6,2299.4,0.00497831]
[1773668781733,7.401,2299.6,2298.9,13.15895127]
[1773668782635,13.28409437,2300.6,2299.0,13.08931989]
[1773668782834,13.28409437,2300.4,2299.0,13.08931989]
[1773668783535,13.28409437,2300.2,2299.0,13.08931989]
[1773668785124,13.28409437,2300.2,2298.9,0.00471498]
[1773668785433,13.28409437,2300.2,2298.2,6.65108239]
[1773668785434,13.28409437,2299.8,2298.1,18.19254552]
[1773668785635,13.28409437,2299.6,2298.1,18.19254552]
[1773668786127,7.415,2299.5,2298.2,0.21752]
[1773668786335,13.28409437,2299.3,2298.2,0.22226384]
[1773668786528,13.28409437,2299.1,2298.2,0.22226384]
[1773668786729,7.416,2299.0,2298.2,0.22226384]
[1773668786935,8.69348,2300.3,2298.2,0.22226384]
[1773668786936,13.28409437,2301.6,2300.1,12.87186989]
[1773668787231,13.28409437,2301.4,2300.2,0.21733]
[1773668787426,13.28409437,2301.2,2300.2,0.21733]
[1773668787729,13.28409437,2301.0,2300.2,0.21733]
[1773668787934,0.00557721,2301.0,2300.6,13.08915989]
[1773668788131,13.28409437,2301.4,2300.6,13.08915989]
[1773668788334,7.423,2301.6,2300.6,13.08915989]
[1773668788530,7.423,2301.5,2300.6,13.08915989]
[1773668788935,20.70709437,2301.5,2300.6,13.08915989]
[1773668789137,20.7104687,2301.5,2300.6,13.08915989]
[1773668789834,13.28409437,2301.4,2300.6,13.08915989]
[1773668790427,13.28409437,2301.4,2300.3,5.33876811]
[1773668790735,13.28409437,2301.4,2300.3,12.87186989]
[1773668790935,13.28409437,2301.4,2300.2,0.00550784]
[1773668791932,13.28409437,2301.4,2300.0,13.08921989]
[1773668791933,13.28409437,2301.4,2299.7,12.87186989]
[1773668792135,13.28409437,2301.2,2299.7,12.87186989]
[1773668792531,13.28409437,2301.0,2299.8,4.94112051]
[1773668792738,13.28409437,2300.8,2299.9,4.94112051]
[1773668792937,13.28409437,2300.8,2300.0,4.94112051]
[1773668793138,20.72209437,2300.7,2300.1,4.94112051]
[1773668793339,7.439,2300.6,2299.9,0.00498873]
[1773668793639,7.439,2300.6,2300.0,4.9409651]
[1773668793843,7.44,2300.5,2300.1,4.9409651]
[1773668794136,20.72409437,2300.5,2299.9,0.00498873]
[1773668794335,13.28409437,2300.4,2299.5,12.87186989]
[1773668794534,13.28409437,2300.4,2299.6,4.94331325]
[1773668794839,13.28409437,2300.4,2299.2,12.87186989]
[1773668795036,13.28409437,2300.4,2299.3,4.94507659]
[1773668795241,13.28409437,2301.3,2300.1,12.87186989]
[1773668795541,7.444,2301.2,2300.4,13.08918989]
[1773668795735,7.609,2303.2,2300.1,0.00311747]
[1773668795736,13.28409437,2302.3,2301.1,12.87186989]
[1773668795934,13.28409437,2302.3,2300.8,13.08914989]
[1773668796837,13.28409437,2302.1,2300.8,13.08914989]
[1773668797341,13.28409437,2301.9,2300.8,13.08914989]
[1773668797536,13.28409437,2301.9,2300.9,17.92125699]
[1773668797737,13.28409437,2301.9,2301.0,5.0493871]
[1773668798039,13.28409437,2301.9,2300.9,12.87186989]
[1773668798040,13.28409437,2301.9,2301.1,5.0493871]
[1773668798240,13.28409437,2301.9,2301.2,5.0493871]
[1773668798439,13.28409437,2301.9,2300.9,12.87186989]
[1773668798637,13.28409437,2301.9,2301.0,5.0479872]
[1773668798832,13.28409437,2301.9,2301.1,5.0479872]
[1773668799038,13.28409437,2301.9,2300.9,12.87186989]
[1773668799239,20.73609437,2301.8,2301.0,5.04791323]
[1773668799440,7.452,2301.7,2301.1,5.04791323]
[1773668799643,20.73609437,2301.7,2301.2,5.04791323]
[1773668799847,20.73609437,2301.7,2300.9,12.87186989]
[1773668800039,20.73609437,2301.7,2301.0,5.04580209]
[1773668800241,20.73609437,2301.7,2301.1,5.04580209]
[1773668800443,20.73609437,2301.7,2301.2,5.04580209]
[1773668800737,20.73609437,2301.7,2300.6,12.87186989]
[1773668800738,13.28409437,2301.6,2300.6,12.87186989]
[1773668800944,13.28409437,2301.6,2300.7,5.1343573]
[1773668801144,13.28409437,2301.6,2300.6,12.87186989]
[1773668801145,13.28409437,2301.6,2300.8,5.1343573]
[1773668801352,13.28409437,2301.6,2300.9,5.1343573]
[1773668801638,13.28409437,2301.6,2300.6,12.87186989]
[1773668801639,13.28409437,2301.6,2301.0,5.1343573]
[1773668801844,13.28409437,2301.6,2300.6,12.87186989]
[1773668802044,13.28409437,2301.6,2300.7,5.13855157]
[1773668802240,13.28409437,2301.6,2300.8,5.13855157]
[1773668802438,13.28409437,2301.6,2300.9,5.13855157]
[1773668802640,13.28409437,2301.6,2300.1,0.00311747]
[1773668802835,13.28409437,2301.4,2300.1,0.00311747]
[1773668803150,13.28409437,2301.2,2300.1,0.00311747]
[1773668803447,7.458,2301.3,2300.1,0.00311747]
[1773668803448,13.28409437,2301.0,2300.1,0.00311747]
[1773668803636,13.28409437,2300.8,2300.1,0.00311747]
[1773668803834,13.28409437,2300.6,2300.1,0.00311747]
[1773668804039,20.74309437,2300.5,2300.1,0.00311747]
[1773668804244,20.74309437,2300.5,2299.8,12.87186989]
[1773668804640,13.28409437,2300.4,2299.6,0.21739]
[1773668804947,13.28409437,2300.4,2299.2,12.87186989]
[1773668805247,13.28409437,2300.4,2299.2,12.87653117]
[1773668805839,13.28409437,2300.4,2299.2,0.00466128]
[1773668807141,13.28409437,2300.2,2299.2,0.00466128]
[1773668807846,13.28409437,2300.0,2299.2,0.00466128]
[1773668808040,0.00545644,2300.6,2299.2,0.00466128]
[1773668808041,13.28409437,2299.8,2299.2,0.00466128]
[1773668808244,20.74909437,2299.7,2298.9,12.87186989]
[1773668808546,13.28409437,2299.5,2298.6,12.87186989]
[1773668808839,20.75009437,2299.4,2298.6,12.87186989]
[1773668809043,7.466,2299.3,2298.6,12.87186989]
[1773668809237,13.28409437,2300.5,2298.8,12.87186989]
[1773668809442,13.28409437,2300.3,2298.9,13.08932989]
[1773668809841,13.28409437,2300.3,2298.7,12.87186989]
[1773668810946,13.28409437,2300.1,2298.7,12.87186989]
[1773668811146,13.28409437,2299.9,2298.8,13.08933989]
[1773668811348,13.28409437,2300.2,2299.3,0.21741]
[1773668811640,13.28409437,2300.5,2299.8,12.87186989]
[1773668811842,0.00046771,2300.6,2299.9,13.08922989]
[1773668812047,7.471,2300.6,2300.4,0.21731]
[1773668812353,7.471,2301.0,2300.4,13.20580052]
[1773668812549,19.7217275,2301.0,2300.4,0.21731]
[1773668812937,0.00544622,2301.0,2300.4,13.20912693]
[1773668813443,7.455,2301.2,2300.7,12.98849052]
[1773668814044,12.14115961,2301.8,2300.8,13.41284261]
[1773668814241,12.14115961,2301.6,2300.4,0.00332641]
[1773668814446,12.14115961,2301.4,2300.4,0.00332641]
[1773668814644,12.1448786,2301.6,2300.7,0.21729]
[1773668814951,12.14115961,2301.4,2300.8,4.98371714]
[1773668815248,7.447,2301.3,2300.5,13.19556261]
[1773668815448,12.14115961,2301.2,2300.6,4.98439876]
[1773668815650,12.14115961,2301.2,2300.7,4.98439876]
[1773668815844,12.14115961,2301.2,2300.5,13.19556261]
[1773668816042,12.14115961,2301.2,2300.6,4.98562561]
[1773668816241,12.14115961,2301.2,2300.7,4.98562561]
[1773668816442,12.14115961,2301.2,2300.8,4.98562561]
[1773668816648,12.14115961,2301.2,2300.4,13.19888902]
[1773668816845,12.14115961,2301.2,2300.5,4.98923031]
[1773668817050,12.14115961,2301.2,2300.6,4.98923031]
[1773668817252,12.14115961,2301.2,2300.7,4.98923031]
[1773668817442,12.14115961,2301.2,2300.8,4.98923031]
[1773668817748,12.14115961,2301.2,2300.5,13.41287261]
[1773668817949,12.14115961,2301.2,2300.6,4.98921564]
[1773668818152,7.447,2301.3,2300.7,18.18477825]
[1773668818347,12.14115961,2301.2,2300.8,4.98921564]
[1773668818546,12.14115961,2301.2,2300.5,0.21731]
[1773668818747,12.14115961,2301.2,2300.6,4.99105594]
[1773668818949,12.14115961,2301.2,2300.4,0.00332641]
[1773668820449,12.14115961,2301.2,2299.7,5.33876811]
[1773668820649,12.14115961,2301.0,2299.3,13.19556261]
[1773668821154,12.14115961,2300.8,2299.3,13.19556261]
[1773668821555,12.14115961,2300.8,2299.3,13.19923226]
[1773668822051,12.14115961,2300.8,2299.3,13.41664226]
[1773668822556,12.14115961,2300.6,2299.3,13.41664226]
[1773668823457,12.14115961,2300.6,2299.3,0.00366965]
[1773668824548,12.14115961,2300.4,2299.3,0.00366965]
[1773668824750,7.495,2300.3,2299.4,13.19556261]
[1773668824956,12.14115961,2300.8,2300.0,13.41291261]
[1773668825152,19.63715961,2301.1,2300.3,13.19556261]
[1773668825361,7.496,2301.1,2300.5,13.19556261]
[1773668825560,19.63715961,2301.1,2300.4,0.21732]
[1773668826350,7.496,2301.1,2300.4,13.41288261]
[1773668828558,12.1448786,2301.6,2300.6,0.2173]
[1773668828763,7.513,2301.5,2300.7,13.19556261]
[1773668828958,7.513,2301.5,2300.8,0.21728]
[1773668829164,12.14115961,2301.4,2300.4,13.19556261]
[1773668829562,12.14115961,2301.4,2300.2,0.21733]
[1773668829958,12.14115961,2301.4,2299.8,18.53433072]
[1773668830157,12.14115961,2301.4,2299.8,13.19556261]
[1773668830462,12.14115961,2301.4,2299.9,13.41292261]
[1773668830659,12.14115961,2301.4,2300.4,0.21731]
[1773668830865,19.66215961,2301.3,2300.4,13.41287261]
[1773668831366,7.523,2301.2,2300.4,13.41287261]
[1773668831963,0.00371899,2301.6,2301.0,13.19556261]
[1773668832170,0.00371899,2301.6,2301.1,13.41281261]
[1773668832370,0.28434633,2302.9,2301.7,8.68791]
[1773668832371,12.14115961,2302.9,2301.7,8.68791]
[1773668832561,7.527,2302.8,2302.2,0.21715]
[1773668833468,7.53228131,2302.8,2302.2,0.21715]
[1773668833667,12.14115961,2302.7,2301.7,16.73651296]
[1773668833867,12.14115961,2302.7,2301.0,3.54631855]
[1773668834066,12.14115961,2302.7,2301.0,0.0053682]
[1773668834266,12.14115961,2302.7,2301.0,13.20093081]
[1773668835067,12.14115961,2302.7,2301.1,0.21725]
[1773668835377,12.14115961,2302.5,2301.4,13.19556261]
[1773668836572,12.14115961,2302.5,2301.5,0.21721]
[1773668836762,19.67815961,2302.6,2301.8,13.19556261]
[1773668836964,19.67815961,2302.6,2301.7,0.21719]
[1773668836965,12.14115961,2302.5,2301.7,0.21719]
[1773668837771,12.14115961,2302.5,2301.2,16.73651296]
[1773668837976,12.14115961,2302.5,2301.2,13.19556261]
[1773668838173,12.14115961,2302.5,2301.0,13.41819081]
[1773668838572,12.14115961,2302.5,2301.5,13.41277261]
[1773668840174,12.14115961,2302.5,2301.5,22.10139261]
[1773668840379,12.14115961,2302.5,2301.7,13.41275261]
[1773668840878,12.14115961,2302.6,2302.2,0.21714]
[1773668841078,12.14115961,2302.6,2301.4,16.73651296]
[1773668841279,12.14115961,2302.6,2301.7,13.19556261]
[1773668841577,7.558,2302.5,2301.8,0.21718]
[1773668841873,7.56,2302.4,2301.8,0.21718]
[1773668842379,7.561,2302.6,2302.2,0.21715]
[1773668842871,0.00528131,2302.8,2302.2,12.67108669]
[1773668843281,0.00528131,2302.8,2302.2,0.21715]
[1773668843575,13.28123126,2302.8,2302.2,0.21715]
[1773668843769,0.00528131,2302.8,2302.2,21.35709669]
[1773668843970,0.60640329,2303.0,2302.7,0.2171]
[1773668844169,13.88235324,2303.0,2302.1,15.99488704]
[1773668844475,13.88235324,2303.0,2301.7,0.21719]
[1773668844881,13.8876616,2303.0,2301.7,0.22280771]
[1773668846080,13.8876616,2303.0,2301.2,3.54095035]
[1773668846278,13.8876616,2303.0,2301.1,0.21724]
[1773668847184,13.8876616,2303.0,2301.1,0.22073068]
[1773668848780,13.27594995,2302.6,2301.1,0.22073068]
[1773668848986,13.27594995,2302.4,2301.1,0.22073068]
[1773668849181,13.27594995,2302.4,2301.1,12.67466737]
[1773668849583,0.61171165,2303.0,2301.6,0.2172]
[1773668849584,20.86094995,2302.3,2301.6,0.2172]
[1773668849885,20.86094995,2302.2,2301.6,0.2172]
[1773668850186,20.86194995,2302.2,2301.6,0.2172]
[1773668850989,13.27594995,2302.1,2301.2,3.54095035]
[1773668851184,13.27594995,2302.1,2301.1,0.00349068]
[1773668853086,7.586,2302.2,2300.4,15.99488704]
[1773668853087,13.27594995,2301.9,2300.4,15.99488704]
[1773668853292,13.27594995,2301.7,2300.3,3.54095035]
[1773668853492,13.27594995,2301.7,2300.1,17.76684111]
[1773668853493,13.27594995,2301.5,2300.1,15.99488704]
[1773668853687,13.27594995,2301.5,2300.1,3.54095035]
[1773668853896,15.12634151,2301.5,2300.0,3.75830035]
[1773668854092,15.12634151,2301.5,2300.0,0.22226354]
[1773668854289,23.81511151,2301.5,2299.8,5.31290442]
[1773668854493,13.27594995,2301.0,2299.2,17.76684111]
[1773668854699,13.27594995,2300.8,2299.2,12.45393669]
[1773668854991,7.601,2300.9,2299.2,12.45393669]
[1773668854992,13.27594995,2300.6,2299.2,12.45393669]
[1773668855186,13.27594995,2300.6,2299.1,0.21744]